Cogmind - Beta 10.2 *** ADVENTURER MODE // 2021.12.03 @ 23:07:54 Player: Bullet Bait Result: Destroyed by Y-72 Warden with Railgun Performance ------------- Evolutions (7) 3500 Regions Visited (13) 2600 Robots Destroyed (335) 1675 Value Destroyed (12813) 12813 Prototype IDs (17) 340 Alien Tech Used (0) 0 Bonus (3220) 3220 TOTAL SCORE: 24148 Bonus ------- High Alert Combat Kills 1059 Follower Combat Kills 403 Met Warlord at Base 500 MAIN.C Attacked Warlord 500 Warlord Defense Kill 958 Friendly Fire -200 Cogmind --------- Core Integrity 0/1300 Matter 300/300 Energy 4/100 System Corruption 12% Temperature Cool (9) Movement Core (800) Ox15 Location -3/Research Parts ------- > --- POWER (3) -------- (None) > --- PROPULSION (5) --- (None) > --- UTILITY (6) ------ Advanced Heat Sink Large Storage Unit Advanced Target Analyzer Energy Mantle Hacking Suite > --- WEAPON (7) ------- Advanced Remote Datajack Enhanced Force Lance > --- INVENTORY (10) --- Light Antimatter Reactor Light Antimatter Reactor Advanced Heat Sink Advanced Signal Interpreter Improved Maneuvering Thrusters Improved Shield Generator Relay Coupler [NC] (21) Drone Bay (2/2) Peak State ------------ > --- POWER ------------ Particle Reactor Light Particle Reactor Light Quantum Reactor > --- PROPULSION ------- Flexi-carbon Leg Flexi-carbon Leg Flexi-carbon Leg Myomer Leg Biometal Leg > --- UTILITY ---------- Advanced Heat Sink Large Storage Unit Advanced Weight Redist. System Advanced Signal Interpreter Precision Energy Filter Hacking Suite > --- WEAPON ----------- Phase Gun Quantum Rifle Quantum Rifle Precision Phase Gun Precision Phase Gun Heavy Machine Gun Linear Accelerator > --- INVENTORY -------- Light Antimatter Reactor Light Particle Reactor Advanced Heat Sink Advanced Heat Sink Advanced Hardlight Generator Energy Mantle Relay Coupler [NC] Drone Bay Improved Plasma Cutter Improved Plasma Cutter [Rating: 136] Favorites ----------- Power Improved Deuterium Engine Engine Improved Deuterium Engine Power Core Reinforced Fission Core Reactor Light Antimatter Reactor Propulsion Light Treads Treads Light Treads Leg Flexi-carbon Leg Utility Improved Signal Interpreter Device Advanced Heat Sink Storage Large Storage Unit Processor Improved Signal Interpreter Hackware Hacking Suite Protection Improved Weapon Shielding Weapon Quantum Rifle Energy Gun Quantum Rifle Energy Cannon Heavy Plasma Cannon Ballistic Gun Heavy Assault Rifle Ballistic Cannon Magnetic Acceleration Cannon Launcher Long-range Missile Launcher Special Weapon Stasis Beam Impact Weapon Gravity Flail Piercing Weapon Plasma Lance Special Melee Weapon Improved Datajack Build | -11 -10 -9 -8 -7 -6 -5 -5 -4 -4 -4 -4 -3 -3 ------- Run | Scr Mat Mat Mat Fac Fac Fac Ext Fac Upp Upp War Pro Res Slots Evolved 14 | . . 2 2 2 2 2 . 2 . . . . 2 Power 2 | . . . 1 . . . . . . . . . 1 Propulsion 3 | . . . . 1 1 . . 1 . . . . . Utility 4 | . . 1 1 . . 2 . . . . . . . Weapon 5 | . . 1 . 1 1 . . 1 . . . . 1 Parts Attached 292 | 7 3 13 22 21 45 22 20 6 10 5 28 14 76 Power 45 | 1 . 3 6 4 5 3 3 . 2 . 4 3 11 Engine 17 | 1 . 3 5 4 4 . . . . . . . . Core 14 | . . . 1 . 1 1 3 . 2 . 4 1 1 Reactor 14 | . . . . . . 2 . . . . . 2 10 Propulsion 67 | 2 . 3 5 8 11 2 5 2 1 . 9 3 16 Treads 39 | 2 . 3 5 8 9 2 5 2 1 . 2 . . Leg 28 | . . . . . 2 . . . . . 7 3 16 Wheel . | . . . . . . . . . . . . . . Hover . | . . . . . . . . . . . . . . Flight . | . . . . . . . . . . . . . . Utility 78 | 2 1 3 5 6 11 10 3 1 4 1 8 4 19 Device 54 | 1 1 1 3 3 7 7 3 1 3 . 5 3 16 Storage 8 | 1 . 1 . 2 2 1 . . . . . . 1 Processor 7 | . . 1 . 1 1 1 . . . . . 1 2 Hackware 3 | . . . 1 . 1 1 . . . . . . . Protection 6 | . . . 1 . . . . . 1 1 3 . . Artifact . | . . . . . . . . . . . . . . Weapon 102 | 2 2 4 6 3 18 7 9 3 3 4 7 4 30 Energy Gun 31 | 1 . 1 . . 4 . . . . 2 3 1 19 Energy Cannon 5 | . . . . . 3 1 1 . . . . . . Ballistic Gun 31 | 1 2 3 4 1 3 4 5 2 1 . 2 2 1 Ballistic Cannon 16 | . . . 2 2 5 2 . 1 1 . 1 . 2 Launcher 4 | . . . . . 1 . 2 . 1 . . . . Special Weapon 7 | . . . . . 1 . . . . 2 . . 4 Impact Weapon 1 | . . . . . . . . . . . . . 1 Slashing Weapon . | . . . . . . . . . . . . . . Piercing Weapon 5 | . . . . . . . . . . . 1 1 3 Special Melee Weapon 2 | . . . . . 1 . 1 . . . . . . Unidentified Prototypes 10 | . . . . . 1 1 . . . . 3 . 5 Parts Lost 108 | . . 1 4 . 13 2 6 1 16 . 14 11 40 Power 15 | . . . 1 . . 1 2 . 1 . 1 3 6 Propulsion 31 | . . . . . 5 . . . 5 . 3 4 14 Utility 17 | . . . 3 . . . 1 . 3 . 4 2 4 Weapon 45 | . . 1 . . 8 1 3 1 7 . 6 2 16 Highest Loss Streak 15 | . . 1 1 . 3 1 2 1 6 . 11 4 15 Average Slot Usage (%) 88 | . 100 99 99 99 84 99 98 99 76 72 79 56 87 Engine 6 | . 14 11 15 15 10 5 . . . . . . . Core 4 | . . . 2 . 2 3 5 10 9 10 9 5 1 Reactor 1 | . . . . . . 1 3 . . . . 2 10 Treads 13 | . 28 22 18 22 14 23 23 26 10 5 6 . . Leg 3 | . . . . . 3 . . . . . . 10 19 Device 9 | . 14 11 14 6 5 17 11 15 14 5 8 7 12 Storage 6 | . 14 11 9 7 6 7 10 5 5 5 5 5 4 Processor 5 | . . 10 9 7 6 2 5 5 5 5 5 9 4 Hackware 4 | . . . 2 7 6 5 5 5 5 5 5 5 4 Protection 1 | . . . 1 . . . . . . 10 5 . . Energy Gun 5 | . 3 7 . . 1 3 . . . 9 10 1 16 Ballistic Gun 9 | . 25 24 18 14 6 9 16 16 9 . 3 2 1 Ballistic Cannon 7 | . . . 8 15 11 8 5 10 11 5 5 . 1 Special Weapon 2 | . . . . . . . . . . 9 8 . 2 Naked Turns . | . . . . . . . . . . . . . . Heaviest Build 130 | 10 10 21 35 58 68 83 84 79 109 87 130 70 117 Greatest Support 137 | 40 40 40 40 68 114 114 109 137 137 23 77 55 122 Greatest Overweight (x) 28 | 2 . . . . 22 . . . 4 3 4 21 28 Average Overweight (x) . | . . . . . 1 . . . 1 2 3 1 . Largest Inventory Capacity 10 | 6 6 8 8 8 10 10 10 10 10 10 10 10 10 Average Capacity 9 | 5 6 6 8 8 9 10 10 10 10 10 10 10 10 Most Carried 10 | 5 4 8 8 8 10 10 10 10 10 9 10 9 10 Average Carried 8 | 1 3 5 7 7 9 9 9 9 9 6 9 5 8 Final Capacity 10 | 6 6 8 8 8 10 10 10 10 10 10 10 10 10 Final Carried 10 | 1 4 8 8 8 10 10 10 9 6 7 10 5 8 Class Distribution -------------------- 30% | Scavenger-Executioner 26% | Scavenger-Gunner 17% | Hacker-Gunner 8% | Scavenger-Mutant 6% | Scavenger-Skirmisher 3% | Hacker-Mutant 3% | Mutant 3% | Scavenger-Tank Dominant Class ---------------- Mutant | -10/Materials Scavenger-Skirmisher | -9/Materials Scavenger-Gunner | -8/Materials Scavenger-Gunner | -7/Factory Scavenger-Gunner | -6/Factory Hacker-Gunner | -5/Factory Scavenger-Gunner | -5/Extension Scavenger-Executioner | -4/Factory Scavenger-Executioner | -4/Upper Caves Scavenger-Executioner | -4/Upper Caves Scavenger-Executioner | -4/Warlord Scavenger-Mutant | -3/Proximity Caves Scavenger-Executioner | -3/Research Resources | -11 -10 -9 -8 -7 -6 -5 -5 -4 -4 -4 -4 -3 -3 ----------- Run | Scr Mat Mat Mat Fac Fac Fac Ext Fac Upp Upp War Pro Res Matter Collected 9785 | 226 79 512 824 1175 1944 694 801 346 932 201 658 167 1226 Remotely 461 | . . . . . . 461 . . . . . . . Salvage Created 15220 | 150 101 1210 1407 1256 2090 1699 1486 371 1018 30 352 632 3418 Parts 751 | 18 5 83 92 65 98 82 70 12 31 1 11 27 156 Haulers Intercepted 8 | . . 3 . 3 . . 1 . . . . . 1 Recyclers Shooed 11 | . . . . 2 1 3 3 . . . . . 2 Parts Field Recycled . | . . . . . . . . . . . . . . Retrieved Matter . | . . . . . . . . . . . . . . Parts Self-Destructed 157 | . . . . . . . . . 29 2 105 21 . Prevented 10 | . . . . . . . . . . . 10 . . Kills | -11 -10 -9 -8 -7 -6 -5 -5 -4 -4 -4 -4 -3 -3 ------- Run | Scr Mat Mat Mat Fac Fac Fac Ext Fac Upp Upp War Pro Res Combat Hostiles Destroyed 219 | . 2 21 35 21 26 12 17 4 25 . 6 11 39 Melee 19 | . . . . . . . . . . . . 9 10 Guns 118 | . 2 21 24 9 13 5 5 4 13 . 3 2 17 Cannons 68 | . . . 10 11 12 5 5 . 12 . 3 . 10 AOE 12 | . . . 1 1 1 2 7 . . . . . . Classes Destroyed 17 | 2 2 5 2 3 1 1 . . . . 1 . . Worker 22 | . . 7 4 3 3 2 . . . . . . 3 Builder 21 | . . . 1 3 6 6 4 1 . . . . . Tunneler 10 | 5 . . 1 1 3 . . . . . . . . Hauler 8 | . . 3 . 3 . . 1 . . . . . 1 Recycler 28 | 1 . 1 2 4 5 6 4 1 . . . . 4 Mechanic 1 | . . . 1 . . . . . . . . . . Operator 2 | . . . . 1 . . 1 . . . . . . Watcher 23 | . 1 3 3 2 4 5 3 . . . . . 2 Swarmer 46 | . . 7 12 3 2 . 3 . 10 . . 6 3 Grunt 95 | . 2 10 16 7 11 4 9 . 9 . 2 4 21 Brawler 6 | . . 1 1 1 1 1 . . 1 . . . . Duelist 5 | . . . . 2 . . 1 . 2 . . . . Sentry 28 | . . 3 6 4 5 2 1 4 1 . . 1 1 Hunter 10 | . . . . . 1 3 2 . 2 . 2 . . Programmer 26 | . . . . 4 6 1 . . . . 1 . 14 Behemoth 2 | . . . . . . 1 1 . . . . . . Striker 1 | . . . . . . . . . . . 1 . . Guerrilla 1 | . . . . . . . 1 . . . . . . Best Kill Streak 11 | 4 2 9 8 6 5 8 11 3 9 . 3 5 7 Combat Bots Only 9 | . 2 7 5 5 5 4 8 2 9 . 3 5 7 Max Kills in Single Turn 7 | 1 1 3 2 2 2 2 7 1 2 . 1 1 2 Gunslinging 2 | . . 2 1 . . . . . . . . . . Exploded 5 | . . . 1 1 1 2 5 . . . . . . Melee 1 | . . . . . . . . . . . . 1 1 Uniques/NPCs Destroyed . | . . . . . . . . . . . . . . Combat | -11 -10 -9 -8 -7 -6 -5 -5 -4 -4 -4 -4 -3 -3 -------- Run | Scr Mat Mat Mat Fac Fac Fac Ext Fac Upp Upp War Pro Res Damage Taken 19092 | . 52 370 928 795 2727 1046 831 366 2051 . 2758 1382 5786 Core 2963 | . 8 97 80 70 518 159 48 21 289 . 190 174 1309 Absorbed by Shields 1797 | . . . . . . . 129 . 702 . 28 . 938 Core Remaining (%) 75 | 100 96 75 85 90 39 . 79 . . . . 41 . Volleys Fired 568 | 11 17 65 85 61 87 36 31 13 44 1 22 11 84 Largest 7 | 2 2 3 3 4 5 5 5 6 6 2 6 2 7 Hottest 560 | 60 60 83 108 140 277 309 251 247 280 188 405 100 560 Shots Fired 2026 | 22 34 186 255 236 282 173 134 65 173 2 91 16 357 Gun 1316 | 22 34 186 186 114 116 94 86 40 74 2 61 16 285 Cannon 640 | . . . 69 122 166 79 35 20 95 . 21 . 33 Launcher 22 | . . . . . . . 13 5 4 . . . . Special 48 | . . . . . . . . . . . 9 . 39 Kinetic 1457 | 11 28 153 255 236 223 114 116 60 169 . 23 5 64 Thermal 489 | 11 6 33 . . 44 59 5 . . 2 59 11 259 Explosive 22 | . . . . . . . 13 5 4 . . . . Electromagnetic 48 | . . . . . 15 . . . . . . . 33 Robot Hit Streak 44 | 12 21 26 24 31 25 38 25 42 43 10 36 28 44 Robot Miss Streak 6 | 1 1 2 4 6 6 6 2 1 2 . 3 1 3 Penetration Max 2 | . . . . . . 2 1 . 1 . . . . Secondary Targets 12 | . . 6 5 . . . . . . . . . 1 Max Gunslinging Chain 2 | . . 2 1 . . . . . . . . . 1 Shots Hit Robots 1513 | 16 29 145 198 160 206 120 97 52 112 1 64 29 284 Core Hits 799 | 9 8 62 118 102 146 79 66 18 47 1 21 19 103 Critical Hits 64 | . . 1 2 3 5 10 8 . 19 . 1 . 15 Critical Kills 24 | . . 1 1 2 1 3 1 . 6 . 1 . 8 Critical Parts Destroyed 36 | . . . 1 1 3 5 7 . 12 . . . 7 Melee Attacks 54 | . . . . . . . 7 . . . . 17 30 Impact . | . . . . . . . . . . . . . . Slashing . | . . . . . . . . . . . . . . Piercing 47 | . . . . . . . . . . . . 17 30 Sneak Attacks 7 | . . . . . . . 7 . . . . . . Combat Hostiles . | . . . . . . . . . . . . . . Follow-up Attacks . | . . . . . . . . . . . . . . Damage Inflicted 36445 | 159 199 1576 2898 3098 4924 4032 4190 1364 3312 28 2191 810 7664 Guns 18764 | 159 199 1576 1646 1584 1913 1264 1780 801 1400 28 1129 193 5092 Cannons 11766 | . . . 1023 1350 2709 1711 766 462 1663 . 1058 . 1024 Explosions 3819 | . . . 229 164 302 1057 1634 101 249 . . . 83 Melee 1791 | . . . . . . . . . . . . 617 1174 Ramming 14 | . . . . . . . 10 . . . 4 . . Kinetic 21135 | 51 132 1236 2669 2934 3200 1548 2407 1263 3063 . 1074 79 1479 Thermal 9427 | 108 67 340 229 164 1389 1427 226 . . 28 1113 114 4222 Explosive 2954 | . . . . . . 1057 1547 101 249 . . . . Electromagnetic 1124 | . . . . . 335 . . . . . . . 789 Impact . | . . . . . . . . . . . . . . Slashing . | . . . . . . . . . . . . . . Piercing 1791 | . . . . . . . . . . . . 617 1174 Highest Corruption 20 | . . . . 1 3 2 2 . . . . 4 20 Average Corruption 5 | . . . . 1 2 1 2 . . . . 4 11 Corruption Purged 14 | . . . . . . . . . . . . . 14 Effects 159 | . . . . 2 28 . 7 . . . . 15 107 Message Errors 25 | . . . . 1 5 . 1 . . . . 5 13 Matter Fused 28 | . . . . . 1 . . . . . . 5 22 Heat Flow Errors 14 | . . . . . 6 . 1 . . . . 2 5 Energy Discharges 19 | . . . . . 6 . 1 . . . . . 12 Parts Rejected 1 | . . . . . . . . . . . . . 1 Data Loss (minor) 18 | . . . . 1 4 . 2 . . . . 1 10 Data Loss (major) 2 | . . . . . . . . . . . . . 2 Misfires 2 | . . . . . . . . . . . . . 2 Alerts 1 | . . . . . . . . . . . . . 1 Misdirections 4 | . . . . . . . . . . . . . 4 Targeting Errors 38 | . . . . . 6 . 2 . . . . 2 28 Weapon Failures 7 | . . . . . . . . . . . . . 7 Overload Shots . | . . . . . . . . . . . . . . Overflow Damage 875 | . . . 51 13 188 169 120 . 34 . 141 . 159 Projectiles 497 | . . . 4 13 123 65 10 . 11 . 141 . 130 Explosions 361 | . . . 47 . 65 104 110 . 23 . . . 12 Melee 17 | . . . . . . . . . . . . . 17 Knockbacks 106 | . . . 15 16 26 12 2 1 16 . 6 . 12 Impact . | . . . . . . . . . . . . . . Kinetic 104 | . . . 15 16 26 12 2 1 16 . 5 . 11 Secondary 2 | . . . . . . . . . . . 1 . 1 Self-Inflicted Damage 587 | . . . 128 . 156 118 138 . 47 . . . . Shots 12 | . . . 2 . 3 3 3 . 1 . . . . Rammed 1 | . . . . . . . 1 . . . . . . Targets Rammed 2 | . . . . . . . 1 . . . 1 . . Kicked 1 | . . . . . . . . . . . 1 . . Crushed . | . . . . . . . . . . . . . . Highest Temperature 886 | 40 58 116 198 250 777 822 13 92 196 66 842 264 886 Average Temperature 141 | 21 27 31 67 74 147 262 13 43 73 39 190 135 228 Received Heat Transfer 3701 | . 36 204 414 258 933 99 48 81 341 . 499 231 557 Effects 120 | . . . . . 24 23 . . . . 9 . 64 Shutdowns 46 | . . . . . 9 2 . . . . 4 . 31 Energy Bleed 14 | . . . . . 4 4 . . . . 1 . 5 Interference 17 | . . . . . 2 4 . . . . 2 . 9 Matter Decay 9 | . . . . . 3 1 . . . . 1 . 4 Short Circuit 8 | . . . . . 1 1 . . . . 1 . 5 Damage (minor) 3 | . . . . . . 1 . . . . . . 2 Damage (major) 18 | . . . . . 3 9 . . . . . . 6 Damage (core) 5 | . . . . . 2 1 . . . . . . 2 Siege Activations . | . . . . . . . . . . . . . . Robots Corrupted . | . . . . . . . . . . . . . . Combat Hostiles . | . . . . . . . . . . . . . . Parts Fried 7 | . . . . . 5 . . . . . . . 2 Impact Corruptions . | . . . . . . . . . . . . . . Robots Melted 2 | . . . . . . . . . . . . . 2 Combat Hostiles 2 | . . . . . . . . . . . . . 2 Parts Melted 43 | . 1 1 . . 3 7 . . . . 6 . 25 Heat Transferred 14738 | 250 150 775 150 100 1606 2090 250 . . 37 1721 259 7350 Parts Sabotaged . | . . . . . . . . . . . . . . Parts Stolen . | . . . . . . . . . . . . . . Parts Stripped . | . . . . . . . . . . . . . . Power Chain Reactions 1 | . . . . . 1 . . . . . . . . Missiles Intercepted . | . . . . . . . . . . . . . . Alert | -11 -10 -9 -8 -7 -6 -5 -5 -4 -4 -4 -4 -3 -3 ------- Run | Scr Mat Mat Mat Fac Fac Fac Ext Fac Upp Upp War Pro Res Peak Influence 870 | 30 91 471 870 484 378 679 861 621 . . . . 289 Initial 339 | . 16 . 121 339 204 . 246 299 . . . . 8 Average 200 | 12 69 186 521 169 85 207 495 490 . . . . 93 Maximum Alert Level 3 | . . 2 3 2 1 2 3 2 . . . . 1 Low Security (%) 62 | 100 100 52 16 50 86 57 . . . . . . 97 Level 1 18 | . . 41 13 45 13 12 10 23 . . . . 2 Level 2 15 | . . 6 37 3 . 29 83 76 . . . . . Level 3 3 | . . . 32 . . . 5 . . . . . . Level 4 . | . . . . . . . . . . . . . . Level 5 . | . . . . . . . . . . . . . . High Security . | . . . . . . . . . . . . . . Max Security . | . . . . . . . . . . . . . . Squads Dispatched 36 | . . 2 6 6 8 2 4 . . . . . 8 Investigation 3 | . . . 1 . 1 . . . . . . . 1 Extermination 14 | . . . . 3 6 1 . . . . . . 4 Reinforcement 11 | . . 2 2 . 1 1 2 . . . . . 3 Assault 3 | . . . . 1 . . 2 . . . . . . Garrison 5 | . . . 3 2 . . . . . . . . . Intercept . | . . . . . . . . . . . . . . Construction Impeded 5 | . . . 1 . 1 . 1 . . . . . 2 Haulers Reinforced . | . . . . . . . . . . . . . . Stealth | -11 -10 -9 -8 -7 -6 -5 -5 -4 -4 -4 -4 -3 -3 --------- Run | Scr Mat Mat Mat Fac Fac Fac Ext Fac Upp Upp War Pro Res Distress Signals 10 | . . 2 2 . . 1 4 . . . . . 1 Communications Jammed . | . . . . . . . . . . . . . . Distress Signals . | . . . . . . . . . . . . . . Times Spotted 350 | . 3 31 46 26 32 21 30 4 35 . 54 16 52 Peak Tracking Total 17 | . 2 6 6 5 5 7 10 2 9 . 17 5 8 Tactical Retreats 21 | . . 2 4 1 . 1 . . 6 . 1 3 3 Traps | -11 -10 -9 -8 -7 -6 -5 -5 -4 -4 -4 -4 -3 -3 ------- Run | Scr Mat Mat Mat Fac Fac Fac Ext Fac Upp Upp War Pro Res Traps Triggered 4 | . . . 1 . . 2 . . . . . . 1 Indirectly 1 | . . . . . . . . . . . . . 1 Trap Hack Attempts . | . . . . . . . . . . . . . . Triggered . | . . . . . . . . . . . . . . Disarmed 1 | . . . 1 . . . . . . . . . . Reprogrammed . | . . . . . . . . . . . . . . Reused . | . . . . . . . . . . . . . . Traps Extracted . | . . . . . . . . . . . . . . Installed . | . . . . . . . . . . . . . . Triggered 11 | . . . . . . . . . . . 10 . 1 Machines | -11 -10 -9 -8 -7 -6 -5 -5 -4 -4 -4 -4 -3 -3 ---------- Run | Scr Mat Mat Mat Fac Fac Fac Ext Fac Upp Upp War Pro Res Machines Disabled 37 | . . . 4 4 5 17 2 2 1 . . . 2 Max in Single Turn 4 | . . . 2 4 3 4 1 1 1 . . . 1 Garrison Access 6 | . . . 1 2 . 1 . . . . . . 2 Energy Cycler 1 | . . . . . . . 1 . . . . . . Machines Sabotaged . | . . . . . . . . . . . . . . Garrisons Compromised . | . . . . . . . . . . . . . . Overloaded Fab Kills . | . . . . . . . . . . . . . . Fab Network Shutdowns . | . . . . . . . . . . . . . . Hacking | -11 -10 -9 -8 -7 -6 -5 -5 -4 -4 -4 -4 -3 -3 --------- Run | Scr Mat Mat Mat Fac Fac Fac Ext Fac Upp Upp War Pro Res Machines Accessed 64 | . 5 3 6 10 11 8 4 2 . 2 4 . 9 Terminals 32 | . 4 2 3 3 7 4 4 2 . 1 . . 2 Fabricators 5 | . . . . 3 1 . . . . . . . 1 Repair Stations 4 | . . . 1 1 1 . . . . . . . 1 Recycling Units 6 | . 1 . 1 . 1 1 . . . . . . 2 Scanalyzers 6 | . . 1 . 2 1 1 . . . . . . 1 Garrison Access 6 | . . . 1 1 . 2 . . . . . . 2 Total Hacks 181 | . 17 11 14 41 32 19 8 8 . 2 7 . 22 Successful 97 | . 8 9 9 22 13 10 4 2 . 2 7 . 11 Failed 84 | . 9 2 5 19 19 9 4 6 . . . . 11 Catastrophic 7 | . . . . . 5 1 . . . . . . 1 Database Lockouts . | . . . . . . . . . . . . . . Manual 18 | . 9 2 . 2 3 . . 1 . 1 . . . Terminals 97 | . 15 5 8 15 23 9 8 8 . 1 . . 5 Fabricators 10 | . . . . 7 1 . . . . . . . 2 Repair Stations 12 | . . . 2 3 3 . . . . . . . 4 Recycling Units 9 | . 2 . 1 . 2 1 . . . . . . 3 Scanalyzers 30 | . . 6 . 12 3 6 . . . . . . 3 Garrison Access 15 | . . . 3 4 . 3 . . . . . . 5 Terminal Hacks 50 | . 5 2 6 7 8 4 4 2 . 2 7 . 3 Record 9 | . . 1 . . . . . . . 1 7 . . Prototype ID Bank 4 | . 1 . 1 1 1 . . . . . . . . Open Door 6 | . . . . . . 1 4 . . 1 . . . Level Access Points 1 | . . . . . . . . . . . . . 1 Branch Access Points 2 | . . . . 1 . . . . . . . . 1 Emergency Access Points 4 | . . . 2 . 1 . . . . . . . 1 Terminal Index 1 | . . . . . . . . 1 . . . . . Alert Level 2 | . . . . 1 1 . . . . . . . . Unreport Threat 3 | . . 1 . 1 1 . . . . . . . . Locate Traps 1 | . . . . . 1 . . . . . . . . Disarm Traps 1 | . . . 1 . . . . . . . . . . Transport Status 1 | . . . . . 1 . . . . . . . . Hauler Manifests 3 | . 1 . 1 . . 1 . . . . . . . Registered Components 2 | . 1 . . 1 . . . . . . . . . Zone Layout 10 | . 2 . 1 2 2 2 . 1 . . . . . Fabricator Hacks 8 | . . . . 5 1 . . . . . . . 2 Load Schematic 4 | . . . . 3 . . . . . . . . 1 Build 4 | . . . . 2 1 . . . . . . . 1 Repair Station Hacks 7 | . . . 1 2 1 . . . . . . . 3 Scan Component 5 | . . . 1 1 1 . . . . . . . 2 Repair 2 | . . . . 1 . . . . . . . . 1 Recycling Unit Hacks 4 | . 1 . 1 . . 1 . . . . . . 1 Retrieve Components 4 | . 1 . 1 . . 1 . . . . . . 1 Scanalyzer 19 | . . 6 . 7 2 4 . . . . . . . Insert Component 10 | . . 3 . 4 1 2 . . . . . . . Analyze 9 | . . 3 . 3 1 2 . . . . . . . Garrison Access Hacks 5 | . . . 1 1 . 1 . . . . . . 2 Seal Access 5 | . . . 1 1 . 1 . . . . . . 2 Unauthorized Hacks 4 | . 2 1 . . 1 . . . . . . . . Terminals 4 | . 2 1 . . 1 . . . . . . . . Botnet 4 | . 2 1 . . 1 . . . . . . . . Fabricators . | . . . . . . . . . . . . . . Repair Stations . | . . . . . . . . . . . . . . Recycling Units . | . . . . . . . . . . . . . . Scanalyzers . | . . . . . . . . . . . . . . Garrison Access . | . . . . . . . . . . . . . . Data Cores Recovered 1 | . . . . 1 . . . . . . . . . Used . | . . . . . . . . . . . . . . Hacking Detections 53 | . 5 3 5 8 11 7 3 2 . . . . 9 Full Trace Events 2 | . . . . . 1 . . . . . . . 1 Feedback Events . | . . . . . . . . . . . . . . Feedback Blocked . | . . . . . . . . . . . . . . Robot Schematics Acquired . | . . . . . . . . . . . . . . Robots Built . | . . . . . . . . . . . . . . Matter . | . . . . . . . . . . . . . . Time . | . . . . . . . . . . . . . . Total Robot Build Rating . | . . . . . . . . . . . . . . Part Schematics Acquired 9 | . . 3 . 3 1 2 . . . . . . . Parts Built 8 | . . . . 4 2 . . . . . . . 2 Matter 584 | . . . . 226 190 . . . . . . . 168 Time 172 | . . . . 113 31 . . . . . . . 28 Total Part Build Rating 24 | . . . . 6 10 . . . . . . . 8 Parts Repaired 1 | . . . . 1 . . . . . . . . . Time 162 | . . . . 38 . . . . . . . . 124 Parts Recycled . | . . . . . . . . . . . . . . Recycled Matter . | . . . . . . . . . . . . . . Retrieved Matter . | . . . . . . . . . . . . . . Retrieved Components 23 | . 1 . 10 . . 10 . . . . . . 2 Parts Scanalyzed 9 | . . 3 . 3 1 2 . . . . . . . Part Schematics Acquired 9 | . . 3 . 3 1 2 . . . . . . . Parts Damaged . | . . . . . . . . . . . . . . Bothacking | -11 -10 -9 -8 -7 -6 -5 -5 -4 -4 -4 -4 -3 -3 ------------ Run | Scr Mat Mat Mat Fac Fac Fac Ext Fac Upp Upp War Pro Res Used RIF Installer . | . . . . . . . . . . . . . . Robots Hacked 1 | . . . . . . . . . . . . . 1 Non-combat . | . . . . . . . . . . . . . . Combat 1 | . . . . . . . . . . . . . 1 Robot Hacks Applied 1 | . . . . . . . . . . . . . 1 parse_system 1 | . . . . . . . . . . . . . 1 Relay Couplers Released 3 | . . . . 3 . . . . . . . . . Machine Destruction 3 | . . . . 3 . . . . . . . . . Robots Rewired 4 | . . . . . . . 4 . . . . . . Allies Hacked . | . . . . . . . . . . . . . . Hacks Repelled . | . . . . . . . . . . . . . . Allies | -11 -10 -9 -8 -7 -6 -5 -5 -4 -4 -4 -4 -3 -3 -------- Run | Scr Mat Mat Mat Fac Fac Fac Ext Fac Upp Upp War Pro Res Total Allies 7 | . . . . . . . 7 . . . . . . Largest Group 7 | . . . . . . . 7 . . . . . . Highest-Rated Group 343 | . . . . . . . 343 . . . . . . Highest-Rated Ally 156 | . . . . . . . 156 . . . . . . Total Orders 13 | . . . . . . 2 . . . . 2 4 5 EXPLORE 12 | . . . . . . 2 . . . . 1 4 5 RETURN 1 | . . . . . . . . . . . 1 . . Ally Attacks 75 | . . . . . . . 75 . . . . . . Total Damage 1637 | . . . . . . . 1637 . . . . . . Kills 12 | . . . . . . . 12 . . . . . . Allies Corrupted 1 | . . . . . . . . . . . . . 1 Allies Melted . | . . . . . . . . . . . . . . Intel | -11 -10 -9 -8 -7 -6 -5 -5 -4 -4 -4 -4 -3 -3 ------- Run | Scr Mat Mat Mat Fac Fac Fac Ext Fac Upp Upp War Pro Res Robot Analysis Total . | . . . . . . . . . . . . . . Derelict Logs Recovered 2 | . . . . . . . . . 1 1 . . . Drone Launches 34 | . . . . . . 2 . . . . 13 18 1 Drone Recoveries 22 | . . . . . . . . . . . 13 8 1 Exploration | -11 -10 -9 -8 -7 -6 -5 -5 -4 -4 -4 -4 -3 -3 ------------- Run | Scr Mat Mat Mat Fac Fac Fac Ext Fac Upp Upp War Pro Res Turns Passed 16292 | 109 428 610 1184 2212 3023 989 939 260 780 1269 1723 583 2183 Spaces Moved 7573 | 53 230 237 536 1188 1285 501 482 120 312 573 668 293 1095 Core 70 | 20 . . . . 44 . . . . . . 2 4 Treads 5904 | 33 230 237 536 1188 1060 501 482 120 312 573 632 . . Legs 1599 | . . . . . 181 . . . . . 36 291 1091 Wheels . | . . . . . . . . . . . . . . Hover . | . . . . . . . . . . . . . . Flight . | . . . . . . . . . . . . . . Fastest Speed 50 | 50 160 160 160 160 150 160 160 160 160 200 120 120 118 Average Speed 174 | 124 160 160 160 160 202 160 160 160 195 219 223 157 129 Slowest Speed 1450 | 160 160 160 160 163 1150 160 160 160 240 220 240 1100 1450 Overloaded Moves . | . . . . . . . . . . . . . . Propulsion Burnouts . | . . . . . . . . . . . . . . Robots Hopped . | . . . . . . . . . . . . . . Cave-ins Triggered . | . . . . . . . . . . . . . . Exploration Rate (%) 37 | 5 36 28 41 26 29 26 46 3 49 67 77 69 25 Regions Visited 13 Branch Regions 5 Pre-discovered Areas . | . . . . . . . . . . . . . . Known Exits Taken 10 | . . 1 1 1 1 1 1 1 1 1 . 1 . Unknown Exits Taken 3 | 1 1 . . . . . . . . . 1 . . Scrap Searched 5 | . . . . . . . . . 3 . . 2 . Spaces Dug 3 | . . . . . . . . . . . 3 . . Terrain Destroyed 631 | . . . 38 32 78 86 153 92 133 . 9 2 8 Melee . | . . . . . . . . . . . . . . Projectile 173 | . . . . 8 45 11 20 10 60 . 9 2 8 AOE 458 | . . . 38 24 33 75 133 82 73 . . . . Terrain Rammed . | . . . . . . . . . . . . . . Walls Destroyed . | . . . . . . . . . . . . . . Machines Disabled . | . . . . . . . . . . . . . . Actions | -11 -10 -9 -8 -7 -6 -5 -5 -4 -4 -4 -4 -3 -3 --------- Run | Scr Mat Mat Mat Fac Fac Fac Ext Fac Upp Upp War Pro Res Total 9295 | 76 260 349 694 1346 1522 595 563 152 375 584 829 373 1577 Wait 490 | . 8 10 30 48 63 10 8 7 7 . 73 30 196 Move 7561 | 52 229 236 535 1187 1284 500 481 119 311 572 668 292 1095 Hop . | . . . . . . . . . . . . . . Pick Up 157 | 6 3 12 8 9 10 10 6 4 3 6 14 9 57 Fast Attach 61 | 2 . . 3 1 24 7 4 . 1 . 10 . 9 Attach 101 | 5 . 3 5 2 1 5 4 3 6 5 8 14 40 Detach 2 | . . . . . . . . . . . 2 . . Swap 131 | . 3 10 14 18 20 10 12 3 3 . 10 . 28 Drop 169 | . . 13 14 20 33 17 9 3 . . 22 . 38 Fire 568 | 11 17 65 85 61 87 36 31 13 44 1 22 11 84 Melee 54 | . . . . . . . 7 . . . . 17 30 Ram . | . . . . . . . . . . . . . . Kick . | . . . . . . . . . . . . . . Crush 1 | . . . . . . . 1 . . . . . . Escape Stasis . | . . . . . . . . . . . . . . Rewire . | . . . . . . . . . . . . . . Trap . | . . . . . . . . . . . . . . Miscellaneous . | . . . . . . . . . . . . . . Route ------- -11/Scrapyard -10/Materials -9/Materials (discovered 2 exits: *Mat / *Min) -8/Materials -7/Factory (discovered 3 exits: *Fac / *Low x2) -6/Factory (discovered 3 exits: *Fac x2 / *Low) -5/Factory -5/Extension -4/Factory -4/Upper Caves -4/Upper Caves -4/Warlord -3/Proximity Caves -3/Research (discovered 5 exits: *Res x3 / Qua x2) History --------- Turn | Location | Event 4 | -11/Scrapyard | Discovered new exit (range 15) 110 | -11/Scrapyard | Entered Materials 314 | -10/Materials | Build established: Mutant 361 | -10/Materials | Discovered new exit (range 16) 538 | -10/Materials | Entered another Materials area 538 | -9/Materials | Evolved 2 slots: Utility x1, Weapon x1 830 | -9/Materials | Discovered new exit (range 15) 867 | -9/Materials | Identified exit to Mines 905 | -9/Materials | Destroyed 7 combat bots 1129 | -9/Materials | Discovered new exit (range 6) 1146 | -9/Materials | Identified exit to Materials 1148 | -9/Materials | Entered another Materials area 1148 | -8/Materials | Evolved 2 slots: Power x1, Utility x1 1290 | -8/Materials | Build established: Scavenger-Skirmisher 1426 | -8/Materials | Garrison activated, responded to threat 1878 | -8/Materials | Build established: Scavenger-Gunner 2258 | -8/Materials | Discovered new exit (range 15) 2325 | -8/Materials | Build established: Hacker-Gunner 2328 | -8/Materials | Identified exit to Factory 2332 | -8/Materials | Entered Factory 2332 | -7/Factory | Evolved 2 slots: Propulsion x1, Weapon x1 2540 | -7/Factory | Fabricated Hpw. Tractor Beam (x2) 2561 | -7/Factory | Identified exit to Lower Caves 2682 | -7/Factory | Build established: Scavenger-Gunner 4151 | -7/Factory | Build established: Hacker-Gunner 4196 | -7/Factory | Repaired Imp. Heat Sink 4289 | -7/Factory | Garrison activated, responded to threat 4368 | -7/Factory | Fabricated Lgt. Treads (x2) 4490 | -7/Factory | Discovered new exit (range 16) 4543 | -7/Factory | Identified exit to Factory 4544 | -7/Factory | Entered another Factory area 4544 | -6/Factory | Evolved 2 slots: Propulsion x1, Weapon x1 5065 | -6/Factory | Build established: Hacker-Mutant 5106 | -6/Factory | Lost 3 parts (2n1w) 5448 | -6/Factory | Build established: Hacker-Gunner 5645 | -6/Factory | Lost 3 parts (3w) 5902 | -6/Factory | Discovered new exit (range 8) 5924 | -6/Factory | Identified exit to Factory 5943 | -6/Factory | Build established: Scavenger-Gunner 6157 | -6/Factory | Lost 3 parts (1n2w) 6384 | -6/Factory | Discovered new exit (range 11) 6417 | -6/Factory | Fabricated Magnetic Acceleration Cannon (x2) 6499 | -6/Factory | Identified exit to Lower Caves 7018 | -6/Factory | Core integrity fell below 50% 7245 | -6/Factory | Discovered exit to Factory (range 13) 7567 | -6/Factory | Entered another Factory area 7567 | -5/Factory | Evolved 2 slots: Utility x2 7721 | -5/Factory | Build established: Hacker-Gunner 8193 | -5/Factory | Spotted B-75 Beast 8350 | -5/Factory | Destroyed B-75 Beast 8529 | -5/Factory | Discovered new exit (range 14) 8556 | -5/Factory | Identified exit to Extension 8556 | -5/Factory | Entered Extension 8653 | -5/Extension | Energy Cycler disabled 8653 | -5/Extension | Rescued a captive Derelict 8653 | -5/Extension | Rescued a captive Derelict 8653 | -5/Extension | Rescued a captive Derelict 8655 | -5/Extension | Rescued a captive Derelict 8655 | -5/Extension | Rescued a captive Derelict 8657 | -5/Extension | Rescued A7 8661 | -5/Extension | Rescued a captive Derelict 8874 | -5/Extension | Build established: Scavenger-Gunner 9206 | -5/Extension | Disrupted transfer network 9222 | -5/Extension | Spotted B-75 Beast 9230 | -5/Extension | Spotted B-75 Beast 9250 | -5/Extension | Allies destroyed B-75 Beast 9251 | -5/Extension | Destroyed B-75 Beast 9269 | -5/Extension | Discovered new exit (range 15) 9369 | -5/Extension | Destroyed 8 combat bots 9456 | -5/Extension | First assault squad dispatched 9493 | -5/Extension | Identified exit to Factory 9495 | -5/Extension | Entered Factory 9495 | -4/Factory | Accompanied by 1 ally (A7) 9495 | -4/Factory | Evolved 2 slots: Propulsion x1, Weapon x1 9718 | -4/Factory | Discovered new exit (range 11) 9754 | -4/Factory | Identified exit to Upper Caves 9755 | -4/Factory | Entered Upper Caves 9756 | -4/Upper Caves | Encountered a Warlord checkpoint 9822 | -4/Upper Caves | Spotted B-86 Titan 9921 | -4/Upper Caves | Attracted the attention of an 0b10 outpost 10062 | -4/Upper Caves | Destroyed 9 combat bots 10312 | -4/Upper Caves | Learned Research non-interactive machine intel 10467 | -4/Upper Caves | Lost 6 parts (1p1n2u2w) 10505 | -4/Upper Caves | Discovered new exit (range 15) 10533 | -4/Upper Caves | Identified exit to Upper Caves 10535 | -4/Upper Caves | Entered another Upper Caves area 10753 | -4/Upper Caves | Learned Research trap positions 11098 | -4/Upper Caves | Build established: Scavenger-Executioner 11200 | -4/Upper Caves | Encountered a Warlord checkpoint 11766 | -4/Upper Caves | Discovered new exit (range 11) 11802 | -4/Upper Caves | Identified exit to Warlord 11804 | -4/Upper Caves | Entered Warlord 11975 | -4/Warlord | Found Prototype Device 11978 | -4/Warlord | Found Prototype Device 11982 | -4/Warlord | Identified Minesniffer Drone Bay (x2) 11985 | -4/Warlord | Found Minesniffer Drone Bay 12084 | -4/Warlord | Learned 4 Access zone layouts 12089 | -4/Warlord | Learned Armory terminal intel 12617 | -4/Warlord | Found Signal Generator 12899 | -4/Warlord | Met Warlord 12924 | -4/Warlord | Warlord's base attacked by MAIN.C 13122 | -4/Warlord | Found Prototype Ballistic Cannon 13122 | -4/Warlord | Identified Hvy. Autocannon 13274 | -4/Warlord | Warlord forces counterattacked 13278 | -4/Warlord | Spotted Striker 13288 | -4/Warlord | Destroyed Striker 13310 | -4/Warlord | Spotted Striker 13369 | -4/Warlord | Lost 3 parts (1n1u1w) 13375 | -4/Warlord | Spotted Striker 13383 | -4/Warlord | Spotted Striker 13437 | -4/Warlord | Spotted Striker 13474 | -4/Warlord | Discovered new exit (range 14) 13524 | -4/Warlord | Spotted Executioner 13527 | -4/Warlord | Entered Proximity Caves 13558 | -3/Proximity Caves | Lost 11 parts (1p2n3u5w) 13598 | -3/Proximity Caves | Attracted the attention of an 0b10 checkpoint 13735 | -3/Proximity Caves | Core integrity fell below 50% 13775 | -3/Proximity Caves | Lost 4 parts (1p2n1w) 13806 | -3/Proximity Caves | Build established: Scavenger-Mutant 13942 | -3/Proximity Caves | Lost 4 parts (1p1n1u1w) 13943 | -3/Proximity Caves | Spotted B-86 Titan 14051 | -3/Proximity Caves | Discovered new exit (range 25) 14108 | -3/Proximity Caves | Identified exit to Research 14110 | -3/Proximity Caves | Entered Research 14110 | -3/Research | Accompanied by 4 allies 14110 | -3/Research | Evolved 2 slots: Power x1, Weapon x1 14111 | -3/Research | Loaded intel: 84 trap records 14112 | -3/Research | Loaded intel: 75 non-interactive machine locations 14272 | -3/Research | Lost 3 parts (1p1n1w) 14300 | -3/Research | Destroyed 7 combat bots 14839 | -3/Research | Spotted B-86 Titan 15037 | -3/Research | Identified exit to Quarantine 15083 | -3/Research | Build established: Scavenger-Executioner 15158 | -3/Research | System corruption reached 10% 15199 | -3/Research | Core integrity fell below 50% 15263 | -3/Research | Lost 15 parts (2p5n2u6w) 15703 | -3/Research | Found Enh. Force Lance 15780 | -3/Research | Fabricated Imp. Shield Generator? 15856 | -3/Research | Identified exit to Research 16130 | -3/Research | Core integrity fell below 20% 16282 | -3/Research | Lost 10 parts (3n1u6w) 16293 | -3/Research | Destroyed by Y-72 Warden with Railgun Last Messages --------------- 16283_ Slug penetrates Garrison Access. 16286_ Penetrated by Slug. 16286_ Slug penetrates Wall. 16286_ Flexi-carbon Leg destroyed. 16286_ Penetrated by Slug. 16286_ Mic. Fission Core destroyed. 16286_ Slug penetrates Wall. 16287_ Lgt. Particle Reactor destroyed. 16287_ Slug penetrates Y-72 Warden. 16287_ Slug penetrates Garrison Access. 16287_ Flexi-carbon Leg destroyed. 16289_ System corrupted: Lgt. Antimatter Reactor rejected. 16289_ Penetrated by Slug. 16289_ Flexi-carbon Leg destroyed. 16289_ Penetrated by Slug. 16290_ Slug penetrates Wall. 16292_ Penetrated by Slug. 16292_ Imp. System Restoration Module destroyed. 16293_ Penetrated by Slug. [Achievement: Achiever] Map ----- +----------------------------------------------------+ | # "" #### ###########??????????????? | | # "" #??# #????????????????????????? | | # "Y #??# #????????????????????????? | | # "" #??# #????????????????????????? | | / "" #??# #????????????????????????? | | # #??# ????????????????????????? | | # #??? #????????????????????????? | | ##########??? ?????????????????????????? | | ????????????? ?????????????????????????? | | ????????????? ?????????????????????????? | | ????????????? ?????????????????????????? | | ????????????? ?????????????????????????? | | ????????????? ?????????????????????????? | | #?????????????????????????????????? | | ????????????????????????????????? | | #?????????????????????????????????? | | ???????????????????????????????????????? | | ???????????????????????????????????????? | | ???????????????????????????????#???????? | | ??????????????##############?# ###?????? | | ??????????????#! !!! # #?????? | | ??????????????# !!! # #?????? | | ??????????????# ! Y + < +?????? | | ? ???????????# hhYY#?? #?????? | | #??????# #?? ! ??????? | | #??????##""" """##@##?? #??????? | | #???????#"""G"""## #?? #??????? | | ##?????????????########## #?? #??????? | | #??????????????????????# #?? #??????? | | #?????????????????????## ### #??????? | | #?????????????????????# #??????? | | +#?????????????????????# #??????? | | ???????????????????????# #??????? | | ???????????????????????#k ### ##??????? | | ???? ?????????????????# #?? #???????? | | ???? ?????????????????# #???#???????? | | ???? ?????????????????# #???????????? | | ???? ?????????????????# #???????????? | | ???? ?????????????????# #???????????? | | ????# ???????????????### ###?????????? | | ????# ############???# #?????????? | | ????# ^ %* ##### #?????????? | | ????# ^ = ! #?????????? | | ????/ ^ |%! #?????????? | | ????#^ |=!%!* #?????????? | | ????# #####%!=! #?????????? | | ##??# " ##???#=!= #?????????? | | !#??# "" =##############?????????? | | #### " =#[*!!! #???????????????? | | + ! !# !!!! #???????????????? | +----------------------------------------------------+ Best States ------------- Heat Dissipation 103 Coolant Potential 50 Energy Generation 61 Energy Capacity 540 Matter Stores 450 Matter Capacity 450 Sight Range 16 Robot Scan Range 13 Terrain Scan Range 16 Terrain Scan Density 10 ECM Strength 1 Additional Mass Support 9 Base Temperature (-) 150 Armor Coverage 450 Resistance: KI 20 Resistance: TH 20 Resistance: EX 20 Resistance: EM 20 Resistance: I 20 Resistance: S 20 Resistance: P 20 Weapon Shielding 66 Phase Shifting 5 Evasion (%) 50 Target Analysis 8 Recoil Reduction 5 Matter Filtering 50 Energy Filtering 50 Offensive Hacking 20 Defensive Hacking 12 Item Schematics ----------------- Hpw. Tractor Beam | -9/Materials | Scanalyzed Lgt. Treads | -9/Materials | Scanalyzed Lgt. Nuclear Core | -9/Materials | Scanalyzed Imp. Shield Generator | -7/Factory | Scanalyzed Weapon Shielding | -7/Factory | Scanalyzed Imp. Datajack | -7/Factory | Scanalyzed Com. Matter Pod | -6/Factory | Scanalyzed Lrn. Missile Launcher | -5/Factory | Scanalyzed Drone Bay | -5/Factory | Scanalyzed Robot Schematics ------------------ None Fabricated ------------ Hpw. Tractor Beam | x2 | -7/Factory Lgt. Treads | x2 | -7/Factory Magnetic Acceleration Cannon | x2 | -6/Factory | Preloaded Imp. Shield Generator | x2 | -3/Research Alien Tech Used ----------------- None Achievements -------------- A Powerful Ally? Achiever Can't Touch This Charge!!! Executioner Prison Break Release The Drones! Challenges ------------ None Game ------ Seed CoolantTacticalDatajack Manual? 0 Play Time 02:52:32 Cumulative 22.1 hours Start 2021.12.02 @ 20:05:35 End 2021.12.03 @ 23:07:54 Sessions 5 Manual Loads 0 Difficulty Adventurer Special Mode None Game No. 18 Rogue 4 Adventurer 14 Explorer 0 Win Type - Total 0 Types 0/0/0/0/0/0/0/0/0 Lore% 14 Gallery% 36 Achievement% 26 Wizard Run 0 Options --------- ASCII 0 Keyboard 0 Movement Mouse Keybinds 0 Fullscreen 1 Font 24/Smallcaps Map View 76x50 Tactical HUD 1 Map Filters NONE Filters NONE Steam 1 RUN: 9fc6a65c-f281-45b4-bfe7-abf35090f842